fUSD/lending_fUSD_20260226
["ID","MTS","AMOUNT","RATE_DAILY","PERIOD"]
[406690801,1772083843029,-1000.0,0.00015895,2]
[406690802,1772083843039,-150.0,0.000159,2]
[406690803,1772083843049,-150.0,0.000159,2]
[406690804,1772083843058,-474.08053912,0.00015915,2]
[406690805,1772083843067,-946.44474214,0.00015966,2]
[406690806,1772083843077,-152.0,0.00016026,28]
[406690807,1772083843087,-600.0,0.00016082,2]
[406690808,1772083843096,-16032.90673636,0.00016121,2]
[406690809,1772083843105,-152.0,0.000162,29]
[406690810,1772083843114,-174.81061234,0.000162,5]
[406690811,1772083843124,-152.0,0.000162,4]
[406690812,1772083843133,-152.0,0.000162,5]
[406690813,1772083843143,-485.65,0.00016213,2]
[406690814,1772083843153,-1000.0,0.00016282,2]
[406690815,1772083843163,-485.65,0.0001632,2]
[406690816,1772083843173,-485.65,0.00016332,2]
[406690817,1772083843182,-500.0,0.00016356,2]
[406690818,1772083843192,-800.0,0.00016356,2]
[406690819,1772083843202,-153.54,0.00016416,2]
[406690820,1772083843212,-485.65,0.00016427,2]
[406690821,1772083843221,-485.65,0.00016436,2]
[406690822,1772083843230,-463.2,0.00016438,2]
[406690823,1772083843239,-7383.73,0.00016438,2]
[406690824,1772083843249,-228.09,0.00016438,2]
[406690825,1772083843259,-485.65,0.00016539,2]
[406690826,1772083843269,-707.591,0.00016548,2]
[406690827,1772083843279,-502.0,0.00016604,3]
[406690828,1772083843289,-485.66086247,0.00016643,2]
[406690829,1772083843299,-1000.0,0.0001667,2]
[406690830,1772083843308,-463.2,0.00016712,2]
[406690831,1772083843318,-167.07,0.00016712,2]
[406690832,1772083843327,-4142.85905041,0.00016757,2]
[406690833,1772083843336,-281.27422717,0.00016767,2]
[406690834,1772083843346,-246.91345338,0.00016767,2]
[406690835,1772083843355,-150.0,0.00016767,2]
[406690836,1772083843364,-500.0,0.00016767,2]
[406690837,1772083843373,-252.84708999,0.00016767,2]
[406690838,1772083843383,-150.0,0.00016767,2]
[406690839,1772083843392,-500.0,0.00016767,2]
[406690840,1772083843401,-500.0,0.00016767,2]
[406690841,1772083843411,-150.0,0.00016767,2]
[406690842,1772083843420,-150.0,0.00016767,2]
[406690843,1772083843429,-167.49194239,0.00016767,2]
[406690844,1772083843438,-154.83757938,0.00016767,2]
[406690845,1772083843448,-150.0,0.00016767,2]
[406690846,1772083843457,-150.0,0.00016767,2]
[406690847,1772083843466,-150.0,0.00016767,2]
[406690848,1772083843476,-150.0,0.00016767,2]
[406690849,1772083843486,-152.67062338,0.00016767,2]
[406690850,1772083843496,-500.0,0.00016767,2]
[406690851,1772083843505,-150.0,0.00016767,2]
[406690852,1772083843515,-500.0,0.00016767,2]
[406690853,1772083843524,-150.0,0.00016767,2]
[406690854,1772083843533,-162.43895648,0.00016767,2]
[406690855,1772083843543,-500.0,0.00016767,2]
[406690856,1772083843552,-150.0,0.00016767,2]
[406690857,1772083843561,-150.0,0.00016767,2]
[406690858,1772083843570,-150.0,0.00016767,2]
[406690859,1772083843579,-150.0,0.00016767,2]
[406690860,1772083843589,-500.0,0.00016822,2]
[406690861,1772083843598,-210.79603747,0.00016822,2]
[406690862,1772083843608,-150.0,0.00016822,2]
[406690863,1772083843618,-500.0,0.00016822,2]
[406690864,1772083843627,-500.0,0.00016822,2]
[406690865,1772083843636,-150.0,0.00016822,2]
[406690866,1772083843645,-150.0,0.00016822,2]
[406690868,1772083843654,-150.0,0.00016822,2]
[406690869,1772083843663,-150.0,0.00016822,2]
[406690870,1772083843672,-150.0,0.00016822,2]
[406690871,1772083843681,-150.0,0.00016822,2]
[406690872,1772083843690,-500.0,0.00016822,2]
[406690873,1772083843701,-150.0,0.00016822,2]
[406690874,1772083843711,-500.0,0.00016822,2]
[406690875,1772083843721,-258.96996012,0.00016822,2]
[406690876,1772083843731,-150.0,0.00016822,2]
[406690877,1772083843740,-574.74754567,0.00016822,2]
[406690878,1772083843750,-150.0,0.00016822,2]
[406690879,1772083843759,-500.0,0.00016877,2]
[406690880,1772083843768,-287.38563793,0.00016877,2]
[406690881,1772083843778,-512.29524281,0.00016877,2]
[406690882,1772083843787,-500.0,0.00016877,2]
[406690883,1772083843796,-150.0,0.00016877,2]
[406690884,1772083843806,-150.0,0.00016877,2]
[406690885,1772083843815,-150.0,0.00016877,2]
[406690886,1772083843824,-251.02541865,0.00016877,2]
[406690887,1772083843834,-226.25199945,0.00016877,2]
[406690888,1772083843843,-158.31265112,0.00016877,2]
[406690889,1772083843852,-500.0,0.00016877,2]
[406690890,1772083843864,-150.0,0.00016877,2]
[406690891,1772083843873,-500.0,0.00016877,2]
[406690892,1772083843883,-210.6018127,0.00016877,2]
[406690893,1772083843892,-251.37506929,0.00016877,2]
[406690894,1772083843902,-500.0,0.00016931,2]
[406690895,1772083843915,-500.0,0.00016931,2]
[406690896,1772083843925,-258.9731701,0.00016931,2]
[406690897,1772083843935,-150.0,0.00016931,2]
[406690898,1772083843945,-150.0,0.00016931,2]
[406690899,1772083843955,-500.0,0.00016931,2]
[406690900,1772083843965,-150.0,0.00016931,2]
[406690901,1772083843974,-500.0,0.00016931,2]
[406690902,1772083843986,-558.65,0.00016938,2]
[406690903,1772083843996,-596.0,0.00016955,2]
[406690904,1772083844006,-463.2,0.00016986,2]
[406690905,1772083844016,-500.0,0.00016986,2]
[406690906,1772083844025,-500.0,0.00016986,2]
[406690907,1772083844035,-243.51213349,0.00016986,2]
[406690908,1772083844045,-500.0,0.00016986,2]
[406690909,1772083844054,-191.4720797,0.00016986,2]
[406690910,1772083844064,-500.0,0.00016986,2]
[406690911,1772083844074,-300.0,0.00017,2]
[406690912,1772083844083,-16032.90673636,0.00017011,2]
[406690913,1772083844093,-500.0,0.00017041,2]
[406690914,1772083844103,-500.0,0.00017041,2]
[406690915,1772083844113,-500.0,0.00017041,2]
[406690916,1772083844123,-500.0,0.00017041,2]
[406690917,1772083844133,-350.0,0.00017056,2]
[406690918,1772083844143,-1000.0,0.00017058,2]
[406690919,1772083844153,-500.0,0.00017096,2]
[406690920,1772083844162,-154.51645155,0.00017096,2]
[406690921,1772083844172,-515.01044141,0.00017096,2]
[406690922,1772083844182,-500.0,0.00017096,2]
[406690923,1772083844191,-295.0,0.0001715,2]
[406690924,1772083844201,-500.0,0.00017151,2]
[406690925,1772083844211,-500.0,0.00017151,2]
[406690926,1772083844221,-295.0,0.00017169,2]
[406690927,1772083844322,-350.0,0.0001718,2]
[406690928,1772083844341,-295.0,0.00017181,2]
[406690929,1772083844351,-500.0,0.00017205,2]
[406690930,1772083844360,-500.0,0.00017205,2]
[406690931,1772083844370,-463.2,0.0001726,2]
[406690932,1772083844380,-458.85187211,0.0001726,2]
[406690933,1772083844389,-500.0,0.0001726,2]
[406690934,1772083844398,-240.13074113,0.00017275,2]
[406690935,1772083844408,-500.0,0.00017315,2]
[406690936,1772083844417,-295.0,0.00017316,2]
[406690937,1772083844427,-775.3783288,0.00017326,2]
[406690938,1772083844437,-500.0,0.0001737,2]
[406690939,1772083844448,-295.0,0.00017399,2]
[406690940,1772083844457,-300.0,0.00017409,5]
[406690941,1772083844467,-500.0,0.00017425,2]
[406690942,1772083844476,-600.0,0.00017452,7]
[406690943,1772083844486,-233.07874525,0.00017479,2]
[406690944,1772083844496,-1553.92824,0.000175,2]
[406690945,1772083844506,-1553.92824,0.000175,2]
[406690946,1772083844515,-1553.92823,0.000175,2]
[406690947,1772083844525,-1553.92823,0.000175,2]
[406690948,1772083844534,-175.45,0.000175,2]
[406690949,1772083844544,-463.2,0.00017534,2]
[406690950,1772083844554,-350.0,0.00017565,2]
[406690951,1772083844563,-295.0,0.00017593,2]
[406690952,1772083844573,-500.0,0.00017597,2]
[406690953,1772083844582,-500.0,0.00017621,2]
[406690954,1772083844591,-350.0,0.00017652,2]
[406690955,1772083844601,-350.0,0.00017658,2]
[406690956,1772083844610,-1631.0088698,0.0001768,2]
[406690957,1772083844621,-1493.0,0.0001768,2]
[406690958,1772083844631,-1000.0,0.0001768,2]
[406690959,1772083844640,-1000.0,0.0001768,2]
[406690960,1772083844649,-1000.0,0.0001768,2]
[406690961,1772083844659,-1000.0,0.0001768,2]
[406690962,1772083844669,-1000.0,0.0001768,2]
[406690963,1772083844678,-1000.0,0.0001768,2]
[406690964,1772083844688,-755.48875966,0.0001768,2]
[406690965,1772083844697,-1553.92823,0.0001768,2]
[406690966,1772083844706,-1553.92824,0.0001768,2]
[406690967,1772083844717,-500.0,0.00017726,7]
[406690968,1772083844727,-800.0,0.00017726,7]
[406690969,1772083844736,-204.0,0.000178,10]
[406690970,1772083844745,-380.0,0.00017805,2]
[406690971,1772083844755,-228.0,0.00017808,2]
[406690972,1772083844764,-463.2,0.00017808,2]
[406690973,1772083844773,-500.0,0.00017808,2]
[406690974,1772083844783,-800.0,0.00017808,2]
[406690975,1772083844792,-304.0,0.00017823,2]
[406690976,1772083844801,-380.0,0.00017827,2]
[406690977,1772083844810,-261.85892847,0.00017833,2]
[406690978,1772083844820,-295.0,0.0001784,2]
[406690979,1772083844829,-295.0,0.00017853,2]
[406690980,1772083844839,-151.0,0.00017862,2]
[406690981,1772083844849,-151.0,0.00017862,2]
[406690982,1772083844859,-500.0,0.00017863,2]
[406690983,1772083844870,-228.0,0.00017877,2]
[406690984,1772083844880,-380.0,0.00017887,2]
[406690985,1772083844889,-761.17059545,0.0001789,2]
[406690986,1772083844900,-1226.81574695,0.0001789,2]
[406690987,1772083844912,-295.0,0.00017897,2]
[406690988,1772083844922,-500.0,0.00017899,2]
[406690989,1772083844931,-500.0,0.00017899,2]
[406690990,1772083844942,-40104.09767,0.000179,2]
[406690991,1772083844952,-1325.33516905,0.000179,3]
[406690992,1772083844961,-231.741238,0.000179,2]
[406690993,1772083844970,-231.741238,0.000179,2]
[406690994,1772083844980,-231.741238,0.000179,2]
[406690995,1772083844989,-231.741238,0.000179,2]
[406690996,1772083844999,-435.386986,0.000179,2]
[406690997,1772083845008,-435.386986,0.000179,2]
[406690998,1772083845018,-435.386986,0.000179,2]
[406690999,1772083845027,-435.386995,0.000179,2]
[406691000,1772083845037,-151.0,0.000179,2]
[406691001,1772083845046,-16032.90673636,0.000179,2]
[406691002,1772083845056,-936.55904935,0.000179,2]
[406691003,1772083845065,-770.36820566,0.000179,2]
[406691004,1772083845075,-500.0,0.00017918,2]
[406691005,1772083845085,-380.0,0.00017918,2]
[406691006,1772083845094,-350.0,0.00017925,2]
[406691007,1772083845104,-380.0,0.00017928,2]
[406691008,1772083845114,-295.0,0.00017943,2]
[406691009,1772083845123,-380.0,0.00017962,2]
[406691010,1772083845133,-295.0,0.00017966,2]
[406691011,1772083845144,-243.78913034,0.00017972,2]
[406691012,1772083845154,-155.0,0.00017991,2]
[406691013,1772083845164,-295.0,0.00017993,2]
[406691014,1772083845175,-542.4,0.00017999,2]
[406691015,1772083845184,-542.4,0.00017999,2]
[406691016,1772083845193,-542.4,0.00017999,2]
[406691017,1772083845203,-542.4,0.00017999,2]
[406691018,1772083845213,-542.4,0.00017999,2]
[406691019,1772083845222,-542.4,0.00017999,2]
[406691020,1772083845232,-542.4,0.00017999,2]
[406691021,1772083845241,-542.4,0.00017999,2]
[406691022,1772083845251,-542.4,0.00017999,2]
[406691023,1772083845260,-542.59673848,0.00017999,2]
[406691024,1772083845270,-500.0,0.00017999,2]
[406691025,1772083845280,-500.0,0.00017999,2]
[406691026,1772083845290,-500.0,0.00017999,2]
[406691027,1772083845300,-500.0,0.00017999,2]
[406691028,1772083845309,-500.0,0.00017999,2]
[406691029,1772083845319,-500.0,0.00017999,2]
[406691030,1772083845328,-500.0,0.00017999,2]
[406691031,1772083845338,-500.0,0.00017999,2]
[406691032,1772083845348,-500.0,0.00017999,2]
[406691033,1772083845357,-500.0,0.00017999,2]
[406691034,1772083845366,-500.0,0.00017999,2]
[406691035,1772083845376,-500.0,0.00017999,2]
[406691036,1772083845386,-312.12098897,0.00017999,2]
[406691037,1772083845396,-500.0,0.00017999,2]
[406691038,1772083845406,-500.83672935,0.00017999,2]
[406691039,1772083845416,-506.81494731,0.00018,2]
[406691040,1772083845426,-1052423.50975052,0.00018,2]
[406691041,1772083845487,-1.82002115,0.00018,2]
[406691042,1772083845506,-255.62849819,0.00018,2]
[406691043,1772083845517,-2811.03906659,0.00018,2]
[406691044,1772083845607,-635.09701972,0.000179,2]
[406691045,1772083845623,-1071.18168082,0.000179,2]
[406691046,1772083845634,-887.1555738,0.000179,2]
[406691047,1772083845645,-325.58015431,0.000179,2]
[406691048,1772083845657,-728.04625164,0.000179,2]
[406691049,1772083846031,-880.09569717,0.00011233,2]
[406691050,1772083846149,-739.41643579,0.00011233,2]
[406691051,1772083846159,-495.79837012,0.000179,2]
[406691052,1772083846169,-25184.07840292,0.00018,2]
[406691136,1772084074254,485.65,1e-08,2]
[406691137,1772084074918,485.65,1e-08,2]
[406691138,1772084075590,485.65,1e-08,2]
[406691139,1772084079950,485.65,1e-08,2]
[406691140,1772084080320,485.65,1e-08,2]
[406691141,1772084080635,485.66086247,1e-08,2]
[406691144,1772084463620,-500.27444322,6.873e-05,2]
[406691145,1772084463642,-500.51094581,6.873e-05,2]
[406691146,1772084463664,-209.0,6.873e-05,2]
[406691147,1772084463686,-200.0,7.123e-05,2]
[406691148,1772084463708,-228.73548124,7.27e-05,2]
[406691149,1772084463729,-250.0,7.56e-05,2]
[406691150,1772084463751,-298.11339346,7.662e-05,2]
[406691151,1772084463773,-1200.0,7.666e-05,2]
[406691152,1772084463794,-4884.43973627,7.667e-05,2]
[406691246,1772085032069,-385.80026373,7.667e-05,2]
[406691247,1772085032079,-113.70268259,7.896e-05,2]
[406691248,1772085032126,-102.12731741,7.896e-05,2]
[406691249,1772085032136,-165.98,8.275e-05,2]
[406691250,1772085032147,-300.0,8.31e-05,2]
[406691251,1772085032157,-300.0,8.31e-05,2]
[406691252,1772085032166,-300.0,8.31e-05,2]
[406691253,1772085032176,-357.78242997,8.31e-05,2]
[406691254,1772085032297,-469.90281369,8.31e-05,2]
[406691255,1772085032309,-372.31475634,8.31e-05,2]
[406691256,1772085032320,-300.0,8.311e-05,2]
[406691257,1772085032330,-1200.0,8.311e-05,2]
[406691258,1772085032340,-229.80849511,8.312e-05,2]
[406691259,1772085032350,-1182.67646978,8.434e-05,2]
[406691266,1772085038215,-677.88128222,8.434e-05,2]
[406691267,1772085038266,-639.442248,8.434e-05,2]
[406691268,1772085038275,-2500.0,8.434e-05,2]
[406691269,1772085038286,-2500.0,8.434e-05,2]
[406691270,1772085038295,-2500.0,8.434e-05,2]
[406691271,1772085038305,-2419.15432674,8.434e-05,2]
[406691272,1772085038315,-420.0,9.141e-05,2]
[406691273,1772085038325,-1680.0,9.141e-05,2]
[406691274,1772085038334,-600.0,9.142e-05,2]
[406691275,1772085038343,-1000.0,9.275e-05,2]
[406691276,1772085038353,-150.0,9.275e-05,2]
[406691277,1772085038363,-9999.99,9.276e-05,2]
[406691278,1772085038372,-3505.32,9.276e-05,2]
[406691279,1772085038381,-299.99,9.276e-05,2]
[406691280,1772085038391,-5430.54,9.276e-05,2]
[406691283,1772085038401,-150.99,9.276e-05,2]
[406691284,1772085038410,-150.99,9.276e-05,2]
[406691285,1772085038419,-3667.16,9.276e-05,2]
[406691286,1772085038428,-9999.99,9.276e-05,2]
[406691287,1772085038438,-999.99,9.276e-05,2]
[406691288,1772085038447,-1600.0,9.754e-05,2]
[406691290,1772085038457,-500.0,9.772e-05,2]
[406691292,1772085038466,-500.0,9.772e-05,2]
[406691294,1772085038475,-500.0,9.772e-05,2]
[406691296,1772085038484,-500.0,9.772e-05,2]
[406691298,1772085038494,-500.0,9.772e-05,2]
[406691299,1772085038503,-500.0,9.772e-05,2]
[406691300,1772085038513,-500.0,9.772e-05,2]
[406691301,1772085038522,-500.0,9.772e-05,2]
[406691302,1772085038531,-500.0,9.772e-05,2]
[406691303,1772085038540,-507.60264346,9.772e-05,2]
[406691304,1772085038549,-500.0,9.772e-05,2]
[406691305,1772085038559,-500.0,9.772e-05,2]
[406691306,1772085038568,-500.0,9.772e-05,2]
[406691307,1772085038577,-500.0,9.772e-05,2]
[406691308,1772085038586,-500.0,9.772e-05,2]
[406691309,1772085038595,-500.0,9.772e-05,2]
[406691310,1772085038604,-373651.79982939,9.773e-05,2]
[406691311,1772085038616,-9523.4030832,9.773e-05,2]
[406691312,1772085038627,-718.06097248,9.773e-05,2]
[406691313,1772085038654,-750.97674804,9.773e-05,2]
[406691314,1772085040492,-4163.35357007,9.773e-05,2]
[406691315,1772085040553,-1611192.40579682,9.773e-05,2]
[406691316,1772085040563,-1297.0,9.858e-05,2]
[406691317,1772085040573,-12074.8,9.873e-05,2]
[406691318,1772085040583,-587.0,0.00010055,2]
[406691319,1772085040601,-1729.0,0.00010055,2]
[406691320,1772085040613,-320.4036749,0.00010131,2]
[406691321,1772085040623,-486.1490889,0.00010184,2]
[406691322,1772085040632,-707.591,0.00010184,2]
[406691323,1772085040642,-255.0,0.00010203,2]
[406691324,1772085040652,-152.0,0.00010643,3]
[406691325,1772085040662,-2500.0,0.00010793,2]
[406691326,1772085040671,-151.0,0.00010887,2]
[406691327,1772085040681,-151.0,0.00010887,2]
[406691328,1772085040690,-151.0,0.00010887,2]
[406691329,1772085040701,-151.0,0.00010887,2]
[406691330,1772085040711,-151.0,0.00010887,2]
[406691331,1772085040721,-500.0,0.00010887,2]
[406691332,1772085040730,-172.22478143,0.00010887,2]
[406691333,1772085040740,-500.0,0.00010887,2]
[406691334,1772085040749,-500.0,0.00010887,2]
[406691335,1772085040759,-611.57498363,0.00010891,2]
[406691336,1772085040768,-500.0,0.00010891,2]
[406691337,1772085040778,-500.0,0.00010891,2]
[406691338,1772085040787,-500.0,0.00010891,2]
[406691339,1772085040801,-500.0,0.00010891,2]
[406691340,1772085040810,-500.0,0.00010891,2]
[406691341,1772085040821,-500.0,0.00010891,2]
[406691342,1772085040830,-500.0,0.00010891,2]
[406691343,1772085040840,-500.0,0.00010891,2]
[406691344,1772085040849,-500.0,0.00010891,2]
[406691345,1772085040859,-500.0,0.00010891,2]
[406691346,1772085040868,-500.0,0.00010891,2]
[406691347,1772085040877,-500.0,0.00010891,2]
[406691348,1772085040887,-2185.5466331,0.000109,2]
[406691349,1772085040896,-2185.54663307,0.00010921,2]
[406691350,1772085040906,-152.0,0.00010935,4]
[406691351,1772085040917,-1600.0,0.00010974,2]
[406691352,1772085040926,-265.0,0.00011061,2]
[406691353,1772085040935,-2480.91630453,0.00011099,2]
[406691354,1772085040946,-2480.91630445,0.00011099,2]
[406691355,1772085040956,-1500.0,0.00011223,2]
[406691356,1772085040966,-433.0,0.00011223,2]
[406691357,1772085040976,-152.0,0.00011228,5]
[406691358,1772085040990,-152.0,0.0001152,6]
[406691359,1772085041000,-2480.91630445,0.00011567,2]
[406691360,1772085041010,-356.63206762,0.00011667,2]
[406691361,1772085041019,-152.0,0.00011813,7]
[406691362,1772085041029,-200.0,0.00011838,2]
[406691363,1772085041039,-215.83,0.00011844,2]
[406691364,1772085041049,-2185.54663307,0.00012084,2]
[406691366,1772085041059,-152.0,0.00012105,8]
[406691368,1772085041069,-1600.0,0.00012193,2]
[406691370,1772085041078,-414.0,0.00012345,2]
[406691371,1772085041088,-9619.74404181,0.00012378,2]
[406691372,1772085041098,-152.0,0.00012398,9]
[406691373,1772085041108,-329.1385,0.00012467,2]
[406691374,1772085041118,-2480.91630445,0.00012472,2]
[406691375,1772085041318,-1619.51213296,0.00012567,2]
[406691376,1772085041333,-152.0,0.0001269,10]
[406691377,1772085041343,-152.0,0.00012983,11]
[406691378,1772085041352,-1235.2464,0.00013103,2]
[406691379,1772085041361,-68894.4394,0.00013103,2]
[406691380,1772085041371,-9619.74404181,0.00013167,2]
[406691381,1772085041380,-2185.54663307,0.00013247,2]
[406691382,1772085041390,-152.0,0.00013275,12]
[406691383,1772085041399,-2480.91630445,0.00013377,2]
[406691384,1772085041408,-1600.0,0.00013412,2]
[406691385,1772085041418,-173.95657067,0.0001347,2]
[406691386,1772085041427,-160.0,0.0001347,2]
[406691387,1772085041438,-152.0,0.00013568,13]
[406691388,1772085041449,-946.44474214,0.00013637,2]
[406691389,1772085041459,-500.0,0.00013698,2]
[406691390,1772085041468,-500.0,0.00013698,2]
[406691391,1772085041478,-500.0,0.00013698,2]
[406691392,1772085041487,-500.0,0.00013698,2]
[406691393,1772085041496,-500.0,0.00013698,2]
[406691394,1772085041506,-500.0,0.00013698,2]
[406691395,1772085041519,-500.0,0.00013698,2]
[406691396,1772085041528,-500.0,0.00013698,2]
[406691397,1772085041538,-500.0,0.00013698,2]
[406691398,1772085041547,-500.0,0.00013698,2]
[406691399,1772085041557,-500.0,0.00013698,2]
[406691400,1772085041566,-500.0,0.00013698,2]
[406691401,1772085041575,-500.0,0.00013698,2]
[406691402,1772085041585,-568.60354988,0.00013698,2]
[406691403,1772085041594,-500.0,0.00013698,2]
[406691404,1772085041604,-500.0,0.00013698,2]
[406691405,1772085041613,-500.0,0.00013698,2]
[406691406,1772085041623,-368.2260392,0.00013698,2]
[406691407,1772085041632,-718.17,0.00013698,2]
[406691408,1772085041642,-718.17,0.00013698,2]
[406691409,1772085041651,-718.17,0.00013698,2]
[406691410,1772085041660,-718.17,0.00013698,2]
[406691411,1772085041669,-718.17,0.00013698,2]
[406691412,1772085041679,-718.17,0.00013698,2]
[406691413,1772085041688,-718.17,0.00013698,2]
[406691414,1772085041697,-718.17,0.00013698,2]
[406691415,1772085041706,-718.17,0.00013698,2]
[406691416,1772085041718,-718.17,0.00013698,2]
[406691417,1772085041728,-718.17,0.00013698,2]
[406691418,1772085041738,-500.0,0.00013698,2]
[406691419,1772085041747,-405.62075362,0.00013698,2]
[406691420,1772085041756,-500.0,0.00013698,2]
[406691421,1772085041766,-500.0,0.00013698,2]
[406691422,1772085041775,-500.0,0.00013698,2]
[406691423,1772085041785,-500.0,0.00013698,2]
[406691424,1772085041795,-500.0,0.00013698,2]
[406691425,1772085041805,-500.0,0.00013698,2]
[406691426,1772085041814,-500.0,0.00013698,2]
[406691427,1772085041824,-500.0,0.00013698,2]
[406691428,1772085041834,-500.0,0.00013698,2]
[406691429,1772085041843,-500.0,0.00013698,2]
[406691430,1772085041853,-500.0,0.00013698,2]
[406691431,1772085041862,-500.0,0.00013698,2]
[406691432,1772085041872,-500.0,0.00013698,2]
[406691433,1772085041882,-500.0,0.00013698,2]
[406691434,1772085041891,-500.0,0.00013698,2]
[406691435,1772085041901,-585.34193517,0.00013698,2]
[406691436,1772085041910,-500.0,0.00013698,2]
[406691437,1772085041920,-500.0,0.00013698,2]
[406691438,1772085041930,-500.0,0.00013698,2]
[406691439,1772085041939,-500.0,0.00013698,2]
[406691440,1772085041949,-409.20397161,0.00013698,2]
[406691441,1772085041959,-500.0,0.00013698,2]
[406691442,1772085041968,-500.0,0.00013698,2]
[406691443,1772085041978,-500.0,0.00013698,2]
[406691444,1772085041987,-500.0,0.00013698,2]
[406691445,1772085041997,-500.0,0.00013698,2]
[406691446,1772085042006,-500.0,0.00013698,2]
[406691447,1772085042016,-500.0,0.00013698,2]
[406691448,1772085042026,-500.0,0.00013698,2]
[406691449,1772085042036,-500.0,0.00013698,2]
[406691450,1772085042046,-500.0,0.00013698,2]
[406691451,1772085042055,-500.0,0.00013698,2]
[406691452,1772085042065,-269.57915282,0.00013698,2]
[406691453,1772085042074,-500.0,0.00013698,2]
[406691454,1772085042084,-500.0,0.00013698,2]
[406691455,1772085042093,-467.36158262,0.00013698,2]
[406691456,1772085042103,-500.0,0.00013698,2]
[406691457,1772085042124,-500.0,0.00013698,2]
[406691458,1772085042140,-500.0,0.00013698,2]
[406691459,1772085042156,-500.0,0.00013698,2]
[406691460,1772085042173,-500.0,0.00013698,2]
[406691461,1772085042191,-500.0,0.00013698,2]
[406691462,1772085042204,-500.0,0.00013698,2]
[406691463,1772085042219,-500.0,0.00013698,2]
[406691464,1772085042236,-500.0,0.00013698,2]
[406691465,1772085042256,-500.0,0.00013698,2]
[406691466,1772085042271,-500.0,0.00013698,2]
[406691467,1772085042288,-500.0,0.00013698,2]
[406691468,1772085042304,-268.69007129,0.00013698,2]
[406691469,1772085042321,-200.0,0.00013699,2]
[406691470,1772085042341,-271.25,0.00013699,2]
[406691471,1772085042358,-226.04,0.00013699,2]
[406691472,1772085042371,-188.37,0.00013699,2]
[406691473,1772085042386,-156.97,0.00013699,2]
[406691474,1772085042403,-784.9,0.00013699,2]
[406691475,1772085042414,-3458.25595049,0.00013699,2]
[406691476,1772085042435,-3925.47404951,0.00013699,2]
[406691477,1772085042449,-500.0,0.00013699,2]
[406691478,1772085042464,-500.0,0.00013699,2]
[406691479,1772085042478,-500.0,0.00013699,2]
[406691480,1772085042491,-500.0,0.00013699,2]
[406691481,1772085042505,-161.16677008,0.00013699,2]
[406691482,1772085042519,-279.20657511,0.00013699,2]
[406691483,1772085042532,-164.03684488,0.00013699,2]
[406691484,1772085042546,-500.0,0.00013699,2]
[406691485,1772085042559,-500.0,0.00013699,2]
[406691486,1772085042573,-620.71882978,0.00013699,2]
[406691487,1772085042586,-500.0,0.00013699,2]
[406691488,1772085042599,-500.0,0.00013699,2]
[406691489,1772085042613,-162.12539331,0.00013699,2]
[406691490,1772085042626,-500.0,0.00013699,2]
[406691491,1772085042640,-160.93544201,0.00013699,2]
[406691492,1772085042653,-524.45332011,0.00013699,2]
[406691493,1772085042665,-500.0,0.00013699,2]
[406691494,1772085042679,-500.0,0.00013699,2]
[406691495,1772085042692,-500.0,0.00013699,2]